bitfinex/quotes_ETHUSD_20240925
["timestamp","ask_amount","ask_price","bid_price","bid_amount"]
[1727274717289,1.19746192,2627.7,2627.6,0.7542]
[1727274717703,1.19746192,2627.8,2627.6,0.7542]
[1727274718278,1.19746192,2627.7,2627.6,0.7542]
[1727274718629,3.80586,2627.6,2627.2,0.7591]
[1727274718833,1.19759074,2627.5,2627.2,0.7591]
[1727274718980,1.19759074,2627.6,2627.2,0.75812622]
[1727274719182,1.19759074,2627.5,2627.2,0.75812622]
[1727274719384,5.00377074,2627.4,2627.2,0.75812622]
[1727274719912,3.80656,2627.1,2626.6,3.80713]
[1727274720115,1.19773096,2627.1,2626.6,3.80713]
[1727274720334,5.00444096,2627.0,2626.3,3.80762]
[1727274720531,8.81115096,2627.0,2626.5,3.80723]
[1727274720687,1.19773096,2626.9,2626.5,3.80723]
[1727274721383,5.00444096,2627.0,2626.5,3.80723]
[1727274721587,5.00444096,2627.0,2626.5,7.61449]
[1727274721588,1.19773096,2626.9,2626.5,7.61449]
[1727274721804,5.00444096,2627.0,2626.5,3.80723]
[1727274722201,5.00444096,2627.0,2626.6,0.8254]
[1727274722706,3.80699,2626.8,2626.4,0.8122]
[1727274723019,1.19773096,2626.9,2626.6,3.80715]
[1727274723226,1.19773096,2626.9,2626.5,3.80728]
[1727274724241,1.19773096,2627.0,2626.6,3.8071]
[1727274724259,5.39382412,2627.1,2627.0,3.80662]
[1727274724283,1.19773096,2627.1,2627.0,3.80662]
[1727274724297,1.19773096,2627.2,2627.0,6.63261481]
[1727274724727,1.19773096,2627.3,2627.0,4.92657748]
[1727274724965,1.19773096,2627.4,2627.0,4.92657748]
[1727274725398,1.19773096,2627.4,2626.6,3.80716]
[1727274725399,1.19773096,2627.6,2627.3,0.7673]
[1727274725613,1.19773096,2627.6,2627.3,4.57348]
[1727274725816,1.19773096,2627.6,2627.5,3.80589]
[1727274726009,1.19773096,2627.7,2627.4,6.63202481]
[1727274726232,1.58732412,2627.8,2627.5,3.80589]
[1727274726233,1.19773096,2627.8,2627.5,3.80589]
[1727274726401,1.19773096,2627.8,2627.6,3.80562]
[1727274726615,1.19773096,2627.9,2627.5,3.80578]
[1727274727239,1.19773096,2627.9,2627.6,3.80572]
[1727274727485,1.19773096,2627.9,2627.8,3.80546]
[1727274727734,1.19773096,2628.1,2627.8,3.80546]
[1727274728557,3.80535,2627.9,2627.3,3.8061]
[1727274728831,5.66900869,2627.8,2627.1,8.41849]
[1727274729074,1.19672818,2627.5,2627.1,4.61209]
[1727274729341,1.19672818,2627.5,2627.2,3.80631]
[1727274729342,1.85571641,2627.5,2627.2,3.80631]
[1727274729642,1.85571641,2627.5,2627.1,4.61209]
[1727274729643,1.19672818,2627.5,2627.1,4.61209]
[1727274730072,1.19672818,2627.5,2627.1,8.41848]
[1727274730435,5.00249818,2627.6,2627.1,4.61209]
[1727274730749,1.19672818,2627.3,2626.8,0.8323]
[1727274730916,1.19672818,2627.3,2626.9,3.80675]
[1727274731126,1.19672818,2627.2,2626.9,3.80675]
[1727274731317,5.00292818,2627.3,2626.8,0.8323]
[1727274731614,5.00307818,2627.2,2626.6,3.80714]
[1727274731818,3.80656,2627.1,2626.5,3.80725]
[1727274732059,4.38151905,2627.1,2626.6,3.80709]
[1727274732226,5.57824723,2627.1,2626.6,3.80709]
[1727274732617,9.38480723,2627.1,2626.5,3.80725]
[1727274732937,5.57824723,2627.1,2626.5,3.80725]
[1727274733259,5.57824723,2627.1,2626.5,7.61452]
[1727274733856,0.71655714,2627.0,2626.5,3.80725]
[1727274734059,0.71655714,2627.0,2626.4,0.8074]
[1727274734355,1.77168723,2627.1,2626.4,0.8074]
[1727274734356,3.80687,2626.9,2626.4,4.61484]
[1727274734723,3.80687,2626.9,2626.5,3.80734]
[1727274735022,1.19672818,2627.0,2626.5,3.80734]
[1727274735229,1.77168723,2627.1,2626.7,3.80704]
[1727274735413,1.19672818,2627.1,2626.7,3.80697]
[1727274736081,1.19672818,2627.1,2627.0,3.80662]
[1727274736218,1.19672818,2627.2,2626.9,0.7689]
[1727274736596,1.58732412,2627.4,2626.9,0.7689]
[1727274736597,1.19672818,2627.4,2626.9,0.7689]
[1727274736714,1.19672818,2627.7,2627.2,3.80623]
[1727274736917,1.19672818,2627.6,2627.1,3.80647]
[1727274737142,0.077,2627.4,2626.9,0.7689]
[1727274737350,1.19672818,2627.3,2626.7,3.80697]
[1727274737571,1.19672818,2627.3,2626.8,3.8069]
[1727274738155,1.19672818,2627.4,2627.0,3.80649]
[1727274738357,1.19672818,2627.5,2627.1,0.8041]
[1727274738660,1.19672818,2627.6,2627.5,3.80589]
[1727274738863,1.19672818,2627.8,2627.6,3.80575]
[1727274739043,1.19672818,2627.9,2627.6,0.7793]
[1727274739358,1.58732412,2628.0,2627.7,3.80552]
[1727274739359,1.19672818,2628.0,2627.7,3.80552]
[1727274740074,3.88235,2627.9,2627.4,3.80601]
[1727274740284,1.19672818,2627.8,2627.6,3.80574]
[1727274740559,1.19672818,2628.1,2627.9,3.80523]
[1727274740784,1.19672818,2628.1,2627.9,3.80529]
[1727274740964,1.19672818,2628.1,2627.9,7.61058]
[1727274741297,1.58732412,2628.3,2627.9,7.61053]
[1727274741298,1.19672818,2628.2,2627.9,7.61053]
[1727274741478,1.19672818,2628.2,2627.5,0.8249]
[1727274741479,1.19672818,2628.3,2627.6,3.47711345]
[1727274741761,1.19672818,2628.3,2627.5,0.8249]
[1727274741762,5.00164818,2628.2,2627.7,3.80551]
[1727274741970,1.19672818,2628.1,2627.7,3.80551]
[1727274742159,1.19672818,2628.1,2627.6,3.80567]
[1727274742334,1.19672818,2628.0,2627.6,3.80567]
[1727274742544,1.19672818,2628.0,2627.5,4.6307]
[1727274742545,1.19672818,2628.1,2627.7,3.80557]
[1727274744194,5.00175818,2628.1,2627.7,3.80557]
[1727274744454,1.19672818,2628.0,2627.7,3.80557]
[1727274744960,1.19672818,2628.0,2627.6,3.80575]
[1727274746179,1.19672818,2628.0,2627.8,3.80538]
[1727274746483,1.19672818,2628.1,2627.8,3.80538]
[1727274746680,1.19672818,2628.1,2627.9,3.80531]
[1727274746840,1.19672818,2628.1,2627.3,11.34022845]
[1727274746841,1.19672818,2628.2,2628.0,3.80515]
[1727274747048,1.19672818,2628.3,2628.1,3.80503]
[1727274747284,1.19672818,2628.5,2628.1,3.80503]
[1727274747481,1.19672818,2628.5,2628.3,3.80474]
[1727274747698,1.19672818,2628.5,2628.3,3.80466]
[1727274748011,1.19672818,2628.6,2628.3,3.80466]
[1727274748477,1.99408227,2628.9,2628.3,3.80466]
[1727274748478,1.19672818,2628.9,2628.6,3.80422]
[1727274749050,1.19672818,2628.9,2628.4,0.7902]
[1727274749265,1.19672818,2628.9,2628.5,3.80444]
[1727274749490,1.19672818,2628.9,2628.6,3.80429]
[1727274749705,1.19672818,2628.9,2628.4,0.7902]
[1727274749849,5.00066818,2628.9,2628.4,4.59467]
[1727274749961,3.80433,2628.6,2628.1,4.56469]
[1727274750144,1.19672818,2628.7,2628.2,3.80478]
[1727274750489,3.80437,2628.6,2628.1,4.56469]
[1727274751192,3.80446,2628.5,2628.1,4.56469]
[1727274751338,0.077,2628.5,2628.1,3.80498]
[1727274751562,0.077,2628.5,2628.0,3.80509]
[1727274751563,3.88146,2628.5,2628.0,3.80509]
[1727274751787,3.80484,2628.3,2627.8,3.80536]
[1727274751972,5.00135818,2628.4,2627.9,3.80529]
[1727274752244,6.22553325,2628.4,2627.9,3.80529]
[1727274752460,10.03021325,2628.4,2627.8,3.80536]
[1727274752672,3.80489,2628.2,2627.6,4.58621]
[1727274752990,3.80474,2628.3,2627.8,3.80545]
[1727274753154,5.74301342,2628.3,2627.8,3.80545]
[1727274753701,3.80491,2628.2,2627.7,3.8056]
[1727274753859,3.80505,2628.1,2627.6,4.58621]
[1727274754060,1.49399375,2628.2,2627.8,3.80545]
[1727274754256,3.80488,2628.2,2627.7,3.80553]
[1727274754458,5.00160818,2628.2,2627.7,3.80553]
[1727274754661,3.80488,2628.2,2627.8,3.80545]
[1727274755353,1.19672818,2628.3,2627.8,3.80536]
[1727274756376,5.86727201,2628.3,2627.8,3.80536]
[1727274756581,3.80489,2628.2,2627.8,3.80536]
[1727274756992,5.00161818,2628.2,2627.7,3.80557]
[1727274757257,5.00161818,2628.2,2627.6,4.58625]
[1727274757258,3.80524,2628.0,2627.6,0.7806]
[1727274757478,0.388224,2627.9,2627.5,3.80576]
[1727274757918,3.80524,2628.0,2627.5,3.80576]
[1727274758117,0.077,2628.1,2627.6,3.80565]
[1727274758398,0.077,2628.1,2627.3,3.80615]
[1727274758399,3.80562,2627.7,2627.3,3.80615]
[1727274758564,3.80562,2627.7,2627.2,4.57142]
[1727274758565,3.80539,2627.9,2627.4,3.80603]
[1727274758748,1.19672818,2628.0,2627.4,3.80603]
[1727274759006,5.07884818,2628.1,2627.6,3.80574]
[1727274759198,3.80525,2628.0,2627.5,3.8058]
[1727274759491,0.66661723,2628.0,2627.7,3.80554]
[1727274759664,3.8821,2628.1,2627.6,3.80573]
[1727274760277,3.8821,2628.1,2627.4,3.80594]
[1727274760499,3.8821,2628.1,2627.6,3.80568]
[1727274761000,0.077,2628.1,2627.6,3.80567]
[1727274761183,0.077,2628.1,2627.7,3.80546]
[1727274761382,3.88207,2628.1,2627.6,7.61134]
[1727274761595,3.88207,2628.1,2627.6,3.80567]
[1727274761956,3.88207,2628.1,2627.6,7.61135]
[1727274762277,3.88207,2628.1,2627.6,3.80567]
[1727274762903,0.077,2628.1,2627.7,3.80548]
[1727274763101,3.88206,2628.1,2627.6,3.80567]
[1727274763659,3.88206,2628.1,2627.6,3.80573]
[1727274764216,5.07878818,2628.1,2627.6,3.80573]
[1727274764622,0.077,2628.1,2627.7,3.80549]
[1727274765113,3.88205,2628.1,2627.7,3.80549]
[1727274765723,3.88205,2628.1,2627.6,3.80574]
[1727274766086,1.19672818,2628.2,2627.7,0.7516]
[1727274766290,1.99128928,2628.5,2627.9,3.80525]
[1727274766291,1.19672818,2628.5,2627.9,3.80525]
[1727274766458,3.80475,2628.3,2627.9,3.80525]
[1727274766658,5.00134818,2628.4,2627.9,3.80525]
[1727274766861,5.00134818,2628.4,2627.9,7.61047]
[1727274767205,1.19672818,2628.5,2628.3,3.80462]
[1727274767576,1.27372818,2628.8,2628.4,3.80457]
[1727274767999,1.27372818,2628.8,2628.1,4.55649]
[1727274768179,3.80417,2628.7,2628.2,3.80481]
[1727274768457,3.80417,2628.7,2627.9,0.836207]
[1727274768458,3.8047,2628.4,2627.9,0.8034]
[1727274768736,0.760918,2628.3,2627.9,4.60863]
[1727274768959,5.00120818,2628.5,2627.9,0.8034]
[1727274769218,5.00120818,2628.5,2627.9,4.68469946]
[1727274769452,5.00103818,2628.6,2628.1,3.80494]
[1727274769793,1.19672818,2628.6,2628.2,3.8048]
[1727274770127,5.00088818,2628.7,2628.2,3.8048]
[1727274770438,1.19672818,2628.6,2627.9,4.60857]
[1727274770598,3.80481,2628.3,2627.8,3.80543]
[1727274770793,4.31266382,2628.3,2627.8,3.80543]
[1727274771218,4.31266382,2628.3,2627.7,4.58728]
[1727274771432,3.80507,2628.1,2627.7,0.7818]
[1727274771810,3.80507,2628.1,2627.5,3.8058]
[1727274772153,3.80507,2628.1,2627.5,0.8083]
[1727274772154,3.80534,2627.9,2627.5,0.8083]
[1727274772293,3.80562,2627.7,2627.2,0.8083]
[1727274772502,3.88283,2627.6,2627.2,0.8083]
[1727274772743,3.8059,2627.5,2627.0,4.59633]
[1727274773034,3.8059,2627.5,2627.0,0.7898]
[1727274773301,0.077,2627.6,2627.0,0.7898]
[1727274773482,0.077,2627.6,2627.2,3.80632]
[1727274773739,5.07911818,2627.9,2627.3,7.01044413]
[1727274773894,5.07911818,2627.9,2627.4,4.59981]
[1727274774096,3.88239,2627.9,2627.4,4.59981]
[1727274774569,1.19672818,2627.9,2627.5,3.80581]
[1727274774735,1.19672818,2628.0,2627.6,3.80567]
[1727274774936,5.00181818,2628.1,2627.6,3.80567]
[1727274775250,3.80509,2628.1,2627.5,3.80581]
[1727274775397,3.80533,2627.9,2627.4,0.7938]
[1727274775594,3.80533,2627.9,2627.4,4.59981]
[1727274776905,3.80533,2627.9,2627.4,4.5998]
[1727274777091,1.19672818,2628.0,2627.5,3.80589]
[1727274777330,1.19672818,2628.0,2627.5,7.61171]
[1727274777491,1.19672818,2628.0,2627.5,3.80582]
[1727274778130,1.19672818,2628.0,2627.5,7.61159]
[1727274778346,1.19672818,2628.0,2627.5,3.80577]
[1727274778523,1.19672818,2628.1,2627.7,3.80559]
[1727274778900,1.19672818,2628.1,2627.5,3.80577]
[1727274778901,5.00184818,2628.1,2627.5,7.61165]
[1727274779044,5.00184818,2628.1,2627.5,8.88396147]
[1727274779239,5.00184818,2628.1,2627.6,3.80573]
[1727274779905,1.19672818,2628.0,2627.5,5.07811147]
[1727274780124,5.00192818,2628.0,2627.5,5.07811147]
[1727274780459,5.00192818,2628.0,2627.4,0.7938]
[1727274780460,5.00205818,2627.9,2627.4,0.7938]
[1727274780998,5.00222818,2627.8,2627.4,0.7938]
[1727274781160,7.61073,2627.9,2627.4,0.7938]
[1727274781472,1.19672818,2627.9,2627.4,4.59984]
[1727274781616,1.19672818,2627.9,2627.4,5.440442]
[1727274781811,5.00205818,2627.9,2627.4,5.440442]
[1727274782220,1.19672818,2627.8,2627.4,5.440442]
[1727274782465,5.00219818,2627.8,2627.4,0.840602]
[1727274782682,5.00219818,2627.8,2627.2,0.7591]
[1727274782683,1.19672818,2627.6,2627.2,0.7591]
[1727274782829,1.27372818,2627.8,2627.2,0.7591]
[1727274783141,1.19672818,2627.9,2627.3,7.28314472]
[1727274783343,1.19672818,2628.0,2627.9,4.63091]
[1727274783596,1.19672818,2628.2,2628.0,3.80517]
[1727274783811,1.19672818,2628.2,2628.0,3.80509]
[1727274784241,1.19672818,2628.3,2628.0,3.80509]
[1727274784256,1.19672818,2628.3,2628.0,7.61019]
[1727274785105,1.19672818,2628.3,2628.2,3.80488]
[1727274785127,1.19672818,2628.3,2628.1,3.88112766]
[1727274785128,1.19672818,2628.5,2628.1,4.56875]
[1727274785139,1.19672818,2628.5,2628.1,4.56874]
[1727274785140,1.19672818,2628.4,2628.1,4.56874]
[1727274785879,1.19672818,2628.3,2627.9,3.80526]
[1727274785902,1.19672818,2628.3,2627.8,0.8057]
[1727274786190,1.19672818,2628.3,2627.9,0.07609715]
[1727274786194,1.19672818,2628.3,2627.8,0.8057]
[1727274786401,1.19672818,2628.3,2628.2,3.80488]
[1727274786841,1.19672818,2628.3,2628.1,3.80494]
[1727274787154,5.79633416,2628.6,2628.1,3.80494]
[1727274787155,1.19672818,2628.5,2628.2,4.61388]
[1727274787896,1.19672818,2628.5,2628.3,3.80466]
[1727274788056,1.19672818,2628.6,2628.4,3.80459]
[1727274788218,1.19672818,2628.6,2628.3,3.80473]
[1727274788557,1.19672818,2628.6,2628.3,7.60937]
[1727274788931,1.19672818,2628.7,2628.3,7.60937]
[1727274789131,1.19672818,2628.6,2628.3,7.60937]
[1727274789423,1.19672818,2628.6,2628.3,4.646477]
[1727274789726,1.19672818,2628.5,2628.0,0.7642]
[1727274789928,3.80462,2628.4,2628.0,0.7642]
[1727274790152,1.19672818,2628.4,2628.0,4.56931]
[1727274790534,1.19672818,2628.3,2628.0,4.56931]
[1727274790725,3.80476,2628.3,2627.8,3.80539]
[1727274791031,5.00148818,2628.3,2627.8,3.80539]
[1727274791236,1.19672818,2628.2,2627.8,3.80539]
[1727274791566,1.19672818,2628.2,2627.6,3.80567]
[1727274791567,3.80503,2628.1,2627.6,3.80567]
[1727274791755,3.80503,2628.1,2627.5,0.7642]
[1727274791756,5.00212818,2627.9,2627.5,0.7642]
[1727274791946,5.07912818,2627.9,2627.3,0.7948]
[1727274792161,1.19672818,2627.8,2627.3,1.254903]
[1727274792365,1.19672818,2627.8,2627.4,3.80597]
[1727274792530,5.07912818,2627.9,2627.3,1.254903]
[1727274792742,5.00219818,2627.8,2627.3,0.7948]
[1727274792938,1.19672818,2627.7,2627.3,8.4071]
[1727274793142,5.00219818,2627.8,2627.3,4.60095]
[1727274793478,6.5895223,2627.8,2627.3,4.60095]
[1727274793684,1.19672818,2627.7,2627.3,4.60095]
[1727274793986,5.39279412,2627.8,2627.3,4.60095]
[1727274793987,5.00219818,2627.8,2627.3,4.60095]
[1727274794343,1.19672818,2627.7,2627.3,4.60095]
[1727274794550,5.00219818,2627.8,2627.3,4.60095]
[1727274794845,1.19672818,2627.7,2627.3,0.7948]
[1727274795055,3.80576,2627.6,2627.1,3.80638]
[1727274795969,1.19672818,2627.5,2627.1,3.8064]
[1727274796189,5.00248818,2627.6,2627.1,3.8064]
[1727274796345,1.19672818,2627.6,2627.0,4.56558]
[1727274796551,1.19672818,2627.5,2627.0,7.39139484]
[1727274796795,5.00250818,2627.6,2627.0,11.93708432]
[1727274797094,0.077,2627.5,2627.0,0.7591]
[1727274797248,1.27372818,2627.5,2627.1,3.80647]
[1727274798103,5.00250818,2627.6,2627.0,3.58491484]
[1727274798413,3.80611,2627.4,2627.0,0.7591]
[1727274798595,3.80635,2627.2,2626.8,3.80691]
[1727274798963,0.077,2627.2,2626.7,0.801]
[1727274799148,5.08013818,2627.2,2626.7,4.60804]
[1727274799340,1.19672818,2627.1,2626.7,4.60804]
[1727274800177,1.27372818,2627.2,2626.8,3.80689]
[1727274800388,1.27372818,2627.2,2626.8,3.80683]
[1727274800543,1.27372818,2627.2,2626.9,3.80675]
[1727274800896,1.19672818,2627.3,2627.2,3.80633]
[1727274801045,1.27372818,2627.6,2627.2,3.65611484]
[1727274801247,3.8059,2627.5,2627.2,0.8303]
[1727274801480,3.8059,2627.5,2627.0,3.61141484]
[1727274801707,5.00262818,2627.5,2627.0,0.7856]
[1727274801867,5.00262818,2627.5,2627.0,1.99222228]
[1727274802079,5.00262818,2627.5,2627.1,3.80646]
[1727274802270,3.8059,2627.5,2627.1,3.80646]
[1727274802467,1.27372818,2627.6,2627.1,3.80646]
[1727274802845,5.07954818,2627.6,2627.1,3.80646]
[1727274803040,1.19672818,2627.6,2627.1,1.24311571]
[1727274803241,5.00226818,2627.8,2627.2,6.63200484]
[1727274803501,5.00233818,2627.7,2627.2,3.80619]
[1727274803918,1.19672818,2627.7,2627.3,3.80612]
[1727274804230,5.39286412,2627.8,2627.3,3.80612]
[1727274804231,1.19672818,2627.8,2627.6,2.82581484]
[1727274804240,1.99442071,2628.1,2627.8,3.80532]
[1727274804241,1.19672818,2628.1,2627.8,3.80532]
[1727274804732,1.19672818,2628.1,2627.9,3.80531]
[1727274804745,0.077,2628.3,2628.0,3.58401484]
[1727274804746,1.19672818,2628.3,2628.0,3.58401484]
[1727274805105,1.58732412,2628.5,2628.0,3.58401484]
[1727274805106,1.19672818,2628.4,2628.0,7.38913484]
[1727274805392,1.19672818,2628.4,2628.0,11.19419484]
[1727274805404,1.58732412,2628.5,2628.0,11.19419484]
[1727274805405,1.19672818,2628.5,2628.2,3.80478]
[1727274805689,5.79844071,2628.8,2628.4,6.63040484]
[1727274805690,1.19672818,2628.7,2628.4,6.63040484]
[1727274805855,1.19672818,2628.8,2628.4,2.82581484]
[1727274806106,1.19672818,2628.8,2628.3,4.6047]
[1727274806274,1.19672818,2628.7,2628.2,3.80481]
[1727274806805,1.19672818,2628.6,2628.2,7.60958]
[1727274807092,5.87383551,2628.9,2628.4,3.80455]
[1727274807093,1.19672818,2628.7,2628.4,3.80455]
[1727274807258,1.19672818,2628.8,2628.4,3.80449]
[1727274807604,1.19672818,2628.8,2628.2,3.80479]
[1727274807801,1.19672818,2628.7,2628.2,3.80479]
[1727274810161,1.19672818,2628.7,2628.3,3.80472]
[1727274810494,1.19672818,2628.8,2628.3,3.80472]
[1727274810655,5.46828412,2628.9,2628.3,3.80472]
[1727274810656,1.19672818,2628.7,2628.3,3.80472]
[1727274811176,1.19672818,2628.8,2628.3,3.80472]
[1727274811767,5.00074818,2628.8,2628.3,3.80472]
[1727274812990,3.80402,2628.8,2628.3,3.80464]
[1727274813281,1.19672818,2628.9,2628.6,0.7811]
[1727274814277,1.19672818,2629.0,2628.6,4.58538]
[1727274814697,5.00046818,2629.0,2628.6,0.7811]
[1727274815191,3.80392,2628.9,2628.6,0.7811]
[1727274815452,1.19672818,2628.9,2628.5,3.80441]
[1727274816187,1.19672818,2628.9,2628.4,0.7704]
[1727274816380,5.07776818,2628.8,2628.2,3.80479]
[1727274817708,5.07776818,2628.8,2628.3,3.80472]
[1727274817913,1.27372818,2628.8,2628.3,3.80472]
[1727274818229,1.27372818,2628.8,2628.3,7.60937]
[1727274818409,5.07774818,2628.8,2628.3,3.80465]
[1727274818579,3.80425,2628.7,2628.1,8.40655]
[1727274818783,5.07774818,2628.8,2628.1,4.60162]
[1727274819001,3.8042,2628.7,2628.1,4.60162]
[1727274819398,3.80433,2628.6,2628.1,4.60162]
[1727274819590,3.80433,2628.6,2628.1,8.866742]
[1727274819795,3.80433,2628.6,2628.1,5.061782]
[1727274820004,3.80433,2628.6,2628.1,8.866712]
[1727274820167,3.80433,2628.6,2628.1,5.061782]
[1727274820379,3.80433,2628.6,2628.1,8.866742]
[1727274820607,3.80433,2628.6,2628.1,5.061782]
[1727274820774,3.80433,2628.6,2628.1,8.866722]
[1727274820972,3.80417,2628.7,2628.1,4.60162]
[1727274821299,3.80445,2628.5,2628.1,0.7967]
[1727274821499,0.077,2628.4,2627.9,0.7592]
[1727274821796,7.60966,2628.3,2627.8,3.80543]
[1727274822612,3.80497,2628.2,2627.7,3.80549]
[1727274822784,3.80513,2628.1,2627.6,4.56493]
[1727274823105,3.80535,2627.9,2627.4,4.63873]
[1727274823309,3.88235,2627.9,2627.4,8.44468]
[1727274823507,3.88235,2627.9,2627.5,3.80589]
[1727274823701,3.88235,2627.9,2627.4,10.029148]
[1727274824200,3.88235,2627.9,2627.5,3.80589]
[1727274824443,0.077,2627.9,2627.5,3.80589]
[1727274824579,0.077,2627.9,2627.6,3.80575]
[1727274825511,0.077,2627.9,2627.5,3.80589]
[1727274825712,3.88232,2627.9,2627.4,2.417268]
[1727274825899,3.88232,2627.9,2627.4,6.223298]
[1727274826286,3.88232,2627.9,2627.5,3.80587]
[1727274826486,3.88232,2627.9,2627.4,6.223288]
[1727274826683,0.077,2627.9,2627.4,0.8328]
[1727274826896,3.88243,2627.9,2627.3,3.8061]
[1727274827074,3.88243,2627.9,2627.4,3.80594]
[1727274827837,0.077,2627.9,2627.4,3.80594]
[1727274828077,0.077,2627.9,2627.5,3.80579]
[1727274828232,3.80504,2628.1,2627.6,3.80566]
[1727274828403,3.80504,2628.1,2627.6,6.63029663]
[1727274828717,3.80504,2628.1,2627.7,3.80558]
[1727274829041,3.80504,2628.1,2627.6,6.63029663]
[1727274829230,3.80504,2628.1,2627.5,4.62249]
[1727274829437,3.80524,2628.0,2627.6,3.80574]
[1727274829728,4.99977581,2628.1,2627.5,0.8166]
[1727274829893,3.80518,2628.0,2627.6,3.80573]
[1727274830087,7.61048,2628.0,2627.5,4.62235]
[1727274830352,0.077,2627.8,2627.1,0.7703]
[1727274830595,3.80597,2627.5,2626.9,3.80665]
[1727274830900,3.80597,2627.5,2627.0,3.80659]
[1727274831342,7.61219,2627.4,2626.8,3.80682]
[1727274831569,4.644269,2627.4,2626.8,3.8068]
[1727274831716,3.80634,2627.2,2626.7,3.80691]
[1727274832252,3.80641,2627.2,2626.6,3.80719]
[1727274832418,3.80657,2627.1,2626.5,4.57756]
[1727274832729,3.80657,2627.1,2626.5,8.38483]
[1727274833052,7.61288,2627.2,2626.6,3.8071]
[1727274833236,3.88305,2627.4,2626.8,2.82463663]
[1727274833413,0.077,2627.4,2627.0,2.82463663]
[1727274834210,1.27173581,2627.6,2627.2,2.82463663]
[1727274834549,1.27173581,2627.6,2627.1,3.80639]
[1727274834550,3.88279,2627.6,2627.1,3.80639]
[1727274834902,0.077,2627.6,2627.1,3.80638]
[1727274835307,5.00028581,2627.8,2627.3,3.80617]
[1727274835622,3.80555,2627.8,2627.3,4.60877]
[1727274836252,3.88232,2627.9,2627.4,3.80603]
[1727274836535,0.077,2627.9,2627.5,3.80587]
[1727274836896,0.077,2627.9,2627.4,2.82463663]
[1727274837111,3.88241,2627.9,2627.3,4.60868]
[1727274837308,0.077,2627.9,2627.3,4.60868]
[1727274837537,3.88234,2627.9,2627.3,5.46416753]
[1727274837739,3.88234,2627.9,2627.4,3.8059]
[1727274837904,1.19473581,2628.0,2627.5,3.80588]
[1727274838095,1.19473581,2628.1,2627.5,3.88199478]
[1727274838312,1.19473581,2628.1,2627.7,3.80556]
[1727274838602,8.88169581,2628.2,2627.7,3.80556]
[1727274838996,1.27173581,2628.2,2627.8,3.80544]
[1727274839117,0.077,2628.2,2627.7,3.80556]
[1727274839568,0.077,2628.2,2627.7,4.53561598]
[1727274840044,0.077,2628.2,2627.8,3.80544]
[1727274840517,3.80498,2628.2,2627.8,3.60103663]
[1727274840660,3.80498,2628.2,2627.8,1.59008726]
[1727274840945,5.07613581,2628.6,2628.0,3.80506]
[1727274841136,3.8814,2628.6,2628.0,6.62969663]
[1727274841662,3.8814,2628.6,2628.1,3.80502]
[1727274841967,3.8814,2628.6,2628.1,3.80491]
[1727274842232,3.8814,2628.6,2628.1,3.805]
[1727274842770,3.80447,2628.5,2628.0,3.64661502]
[1727274842937,1.27173581,2628.8,2628.4,2.82463663]
[1727274843143,1.99006362,2629.0,2628.5,3.80444]
[1727274843144,5.07556581,2629.0,2628.5,3.80444]
[1727274843371,3.88083,2629.0,2628.6,2.82463663]
[1727274843963,3.88083,2629.0,2628.5,3.80444]
[1727274844830,0.077,2629.0,2628.5,7.60881]
[1727274844836,3.88076,2629.0,2628.5,3.80437]
[1727274845750,3.88076,2629.0,2628.5,1.04336766]
[1727274845755,7.68458,2629.0,2628.5,1.04336766]
[1727274845882,3.88076,2629.0,2628.5,4.84780766]
[1727274846158,3.88076,2629.0,2628.5,1.04336766]
[1727274846159,3.80389,2628.9,2628.5,1.04336766]
[1727274846223,3.80389,2628.9,2628.2,3.62033663]
[1727274846224,3.80403,2628.8,2628.2,0.7957]
[1727274846689,3.80438,2628.6,2628.1,3.80494]
[1727274846877,3.88138,2628.6,2628.1,3.80494]
[1727274847417,3.88138,2628.6,2628.0,0.8262]
[1727274847418,3.80459,2628.4,2628.0,0.8262]
[1727274848797,4.649886,2628.6,2628.0,4.63137]
[1727274848977,7.68574,2628.6,2628.0,4.63137]
[1727274849166,3.88134,2628.6,2628.0,4.63129]
[1727274849359,3.88134,2628.6,2628.0,8.43638]
[1727274849657,0.077,2628.6,2628.0,4.63129]
[1727274849928,5.07584581,2628.8,2628.1,0.463129]
[1727274850212,5.07584581,2628.8,2628.0,8.43637]
[1727274850213,7.6088,2628.6,2628.0,8.43637]
[1727274850490,5.07583581,2628.8,2628.1,0.07609259]
[1727274850818,4.99883581,2628.8,2628.3,3.80464]
[1727274850825,3.8041,2628.8,2628.4,0.8288]
[1727274851390,4.99883581,2628.8,2628.2,4.5862]
[1727274851396,3.8041,2628.8,2628.3,3.80472]
[1727274851721,3.80416,2628.7,2628.2,4.5862]
[1727274852062,7.60823,2628.8,2628.2,4.5862]
[1727274852376,4.99883581,2628.8,2628.3,3.80472]
[1727274852582,7.99864581,2628.9,2628.4,3.80456]
[1727274852793,6.80391,2628.9,2628.3,4.643812]
[1727274853008,7.99864581,2628.9,2628.3,4.643732]
[1727274853209,7.99864581,2628.9,2628.4,3.80457]
[1727274853520,3.8041,2628.8,2628.2,0.7814]
[1727274853686,3.8041,2628.8,2628.0,3.80515]
[1727274853687,3.80445,2628.5,2628.0,3.80515]
[1727274855976,7.60904,2628.5,2628.0,3.80515]
[1727274856174,3.80445,2628.5,2628.0,3.80509]
[1727274856405,0.077,2628.6,2628.1,3.80502]
[1727274856994,3.88137,2628.6,2628.1,3.80502]
[1727274858092,3.80446,2628.5,2628.0,4.262879]
[1727274858401,3.80446,2628.5,2628.0,7.61024]
[1727274858709,3.80446,2628.5,2628.0,3.80509]
[1727274859102,0.077,2628.6,2628.2,3.80478]
[1727274859615,3.80421,2628.7,2628.3,3.80473]
[1727274859963,5.07553581,2629.0,2628.5,3.80437]
[1727274860257,3.8808,2629.0,2628.5,3.80437]
[1727274860415,3.8414693,2629.1,2628.6,3.80422]
[1727274860802,3.8414693,2629.1,2629.0,3.80372]
[1727274860803,0.0378193,2629.1,2629.0,3.80372]